[Event "*** Titled Tuesday Blitz"]
[Site "Chess.com"]
[Date "2020.03.03"]
[Round "1"]
[White "SHIVACalypso"]
[Black "TST2014"]
[Result "0-1"]
[WhiteElo "2185"]
[BlackElo "2593"]
[TimeControl "180+1"]
[EndTime "13:06:34 PST"]
[Termination "TST2014 won by resignation"]

1. Nf3 {[%clk 0:03:00.9]} 1... Nf6 {[%clk 0:02:58.8]} 2. c4 {[%clk 0:03:01.2]}
2... g6 {[%clk 0:02:56.8]} 3. g3 {[%clk 0:03:01.5]} 3... Bg7 {[%clk 0:02:56.9]}
4. Bg2 {[%clk 0:03:02]} 4... O-O {[%clk 0:02:57.2]} 5. O-O {[%clk 0:03:02.6]}
5... c6 {[%clk 0:02:56.2]} 6. d4 {[%clk 0:03:01.4]} 6... d5 {[%clk 0:02:56]} 7.
cxd5 {[%clk 0:03:02.3]} 7... cxd5 {[%clk 0:02:56.5]} 8. Ne5 {[%clk 0:03:02.7]}
8... e6 {[%clk 0:02:55.5]} 9. Nc3 {[%clk 0:03:01]} 9... Nfd7 {[%clk 0:02:54.8]}
10. Nxd7 {[%clk 0:02:58.9]} 10... Bxd7 {[%clk 0:02:51.1]} 11. e4 {[%clk
0:02:53.4]} 11... dxe4 {[%clk 0:02:44.3]} 12. Bxe4 {[%clk 0:02:54.3]} 12... Bc6
{[%clk 0:02:43.3]} 13. d5 {[%clk 0:02:43.4]} 13... exd5 {[%clk 0:02:42.2]} 14.
Nxd5 {[%clk 0:02:32.8]} 14... Nd7 {[%clk 0:02:33.2]} 15. Qc2 {[%clk 0:02:09.4]}
15... Rc8 {[%clk 0:02:23.9]} 16. Nc3 {[%clk 0:02:00.1]} 16... Bxe4 {[%clk
0:01:56.8]} 17. Qxe4 {[%clk 0:02:01]} 17... Nc5 {[%clk 0:01:56.6]} 18. Qb4
{[%clk 0:01:49]} 18... b6 {[%clk 0:01:43.6]} 19. Be3 {[%clk 0:01:44]} 19... Nd3
{[%clk 0:01:42.8]} 20. Qb3 {[%clk 0:01:10]} 20... Nxb2 {[%clk 0:01:39.2]} 21.
Rac1 {[%clk 0:01:09.3]} 21... Nd3 {[%clk 0:01:31.8]} 22. Rc2 {[%clk 0:01:07.3]}
22... Qc7 {[%clk 0:01:25.9]} 23. Rd1 {[%clk 0:00:41.8]} 23... Rfd8 {[%clk
0:01:18.1]} 24. Bd2 {[%clk 0:00:34.1]} 24... Qc5 {[%clk 0:00:58.7]} 25. Be3
{[%clk 0:00:31.7]} 25... Qc4 {[%clk 0:00:51.3]} 26. Qxc4 {[%clk 0:00:23.4]}
26... Rxc4 {[%clk 0:00:51.6]} 27. Bd2 {[%clk 0:00:24.3]} 27... Rdc8 {[%clk
0:00:43.8]} 28. Kf1 {[%clk 0:00:18.3]} 28... Bxc3 {[%clk 0:00:38.5]} 29. Bxc3
{[%clk 0:00:17]} 29... Rxc3 {[%clk 0:00:38.7]} 30. Rxd3 {[%clk 0:00:17.6]} 30...
Rxc2 {[%clk 0:00:38.2]} 0-1

[Event "*** Titled Tuesday Blitz"]
[Site "Chess.com"]
[Date "2020.03.03"]
[Round "1"]
[White "Carnivoras"]
[Black "kasparicy"]
[Result "1-0"]
[WhiteElo "2692"]
[BlackElo "2337"]
[TimeControl "180+1"]
[EndTime "13:06:41 PST"]
[Termination "Carnivoras won by resignation"]

1. d4 {[%clk 0:03:00.9]} 1... Nf6 {[%clk 0:02:53]} 2. Nf3 {[%clk 0:03:01.8]}
2... g6 {[%clk 0:02:52.4]} 3. Bg5 {[%clk 0:03:01.2]} 3... Bg7 {[%clk 0:02:51.5]}
4. Nbd2 {[%clk 0:03:01]} 4... d5 {[%clk 0:02:51.3]} 5. e3 {[%clk 0:03:00.3]}
5... O-O {[%clk 0:02:46.3]} 6. Bd3 {[%clk 0:02:59.7]} 6... b6 {[%clk 0:02:43.7]}
7. O-O {[%clk 0:02:58.5]} 7... Bb7 {[%clk 0:02:34.6]} 8. Qe2 {[%clk 0:02:55]}
8... c5 {[%clk 0:02:10.8]} 9. c3 {[%clk 0:02:53.1]} 9... Nbd7 {[%clk 0:02:08.2]}
10. h3 {[%clk 0:02:49.6]} 10... Re8 {[%clk 0:02:05.1]} 11. Rad1 {[%clk
0:02:43.7]} 11... e5 {[%clk 0:01:57.6]} 12. dxe5 {[%clk 0:02:39.8]} 12... Nxe5
{[%clk 0:01:58.5]} 13. Bb5 {[%clk 0:02:32.3]} 13... Nc6 {[%clk 0:01:39.5]} 14.
Rfe1 {[%clk 0:02:05.8]} 14... a6 {[%clk 0:01:37.6]} 15. Bd3 {[%clk 0:02:04.7]}
15... d4 {[%clk 0:01:24.1]} 16. cxd4 {[%clk 0:02:02.9]} 16... cxd4 {[%clk
0:01:23.8]} 17. Ne4 {[%clk 0:02:01.9]} 17... Nxe4 {[%clk 0:01:18.8]} 18. Bxd8
{[%clk 0:02:00.7]} 18... Raxd8 {[%clk 0:01:18.9]} 19. exd4 {[%clk 0:01:29]}
19... Nd6 {[%clk 0:01:05.8]} 20. Qf1 {[%clk 0:01:24.5]} 20... Rxe1 {[%clk
0:01:00.6]} 21. Rxe1 {[%clk 0:01:25.4]} 21... Nxd4 {[%clk 0:00:59.8]} 22. Nxd4
{[%clk 0:01:24.7]} 22... Bxd4 {[%clk 0:01:00.7]} 23. Bxa6 {[%clk 0:01:24]} 23...
Ba8 {[%clk 0:00:55.3]} 24. Rd1 {[%clk 0:01:23.2]} 24... Ne4 {[%clk 0:00:46.3]}
25. Kh2 {[%clk 0:01:11.1]} 25... Be5+ {[%clk 0:00:42.3]} 26. g3 {[%clk
0:01:10.8]} 26... Re8 {[%clk 0:00:19.5]} 27. Qb5 {[%clk 0:01:05.8]} 27... Nf6
{[%clk 0:00:16.6]} 28. Qxb6 {[%clk 0:00:59]} 28... Kg7 {[%clk 0:00:16.3]} 29.
Bb7 {[%clk 0:00:58.5]} 29... Rb8 {[%clk 0:00:15.3]} 30. Qe3 {[%clk 0:00:50.4]}
30... Bxg3+ {[%clk 0:00:13.7]} 31. fxg3 {[%clk 0:00:48]} 31... Rxb7 {[%clk
0:00:13.8]} 32. Rd2 {[%clk 0:00:47.6]} 32... Rb5 {[%clk 0:00:11.6]} 33. Qc3
{[%clk 0:00:46.8]} 33... Rc5 {[%clk 0:00:09]} 34. Qxc5 {[%clk 0:00:46.1]} 1-0

[Event "*** Titled Tuesday Blitz"]
[Site "Chess.com"]
[Date "2020.03.03"]
[Round "1"]
[White "IMTominho"]
[Black "ChesterF"]
[Result "1-0"]
[WhiteElo "2812"]
[BlackElo "2432"]
[TimeControl "180+1"]
[EndTime "13:06:42 PST"]
[Termination "IMTominho won on time"]

1. d4 {[%clk 0:03:00.9]} 1... Nf6 {[%clk 0:02:57.7]} 2. c4 {[%clk 0:03:00.2]}
2... e6 {[%clk 0:02:57.9]} 3. Nf3 {[%clk 0:02:56.3]} 3... d5 {[%clk 0:02:57]} 4.
Nc3 {[%clk 0:02:55.9]} 4... a6 {[%clk 0:02:53.8]} 5. cxd5 {[%clk 0:02:54]} 5...
exd5 {[%clk 0:02:54.3]} 6. Bg5 {[%clk 0:02:52.1]} 6... Be6 {[%clk 0:02:54.5]} 7.
Bxf6 {[%clk 0:02:45.8]} 7... Qxf6 {[%clk 0:02:53.9]} 8. Qb3 {[%clk 0:02:46.1]}
8... Ra7 {[%clk 0:02:52.9]} 9. e3 {[%clk 0:02:07.7]} 9... Qd8 {[%clk 0:02:48.5]}
10. Bd3 {[%clk 0:02:05.5]} 10... c6 {[%clk 0:02:48]} 11. O-O {[%clk 0:02:03.8]}
11... Bd6 {[%clk 0:02:48.2]} 12. Qc2 {[%clk 0:01:57.7]} 12... h6 {[%clk
0:02:42.2]} 13. e4 {[%clk 0:01:57.6]} 13... dxe4 {[%clk 0:02:29.2]} 14. Nxe4
{[%clk 0:01:58.5]} 14... O-O {[%clk 0:02:25.5]} 15. Rfe1 {[%clk 0:01:58.5]}
15... Be7 {[%clk 0:02:19.3]} 16. Nc5 {[%clk 0:01:57.5]} 16... Bd5 {[%clk
0:02:17.3]} 17. Bh7+ {[%clk 0:01:47.4]} 17... Kh8 {[%clk 0:02:16.5]} 18. Be4
{[%clk 0:01:48.3]} 18... b6 {[%clk 0:02:14.1]} 19. Nd3 {[%clk 0:01:45.7]} 19...
Bf6 {[%clk 0:01:38.5]} 20. Rad1 {[%clk 0:01:38.9]} 20... a5 {[%clk 0:01:15.3]}
21. h3 {[%clk 0:01:34.9]} 21... Na6 {[%clk 0:01:00.9]} 22. a3 {[%clk 0:01:32.9]}
22... Nc7 {[%clk 0:00:58.3]} 23. Nde5 {[%clk 0:01:30.4]} 23... Qd6 {[%clk
0:00:41.9]} 24. Nxc6 {[%clk 0:01:22.7]} 24... Raa8 {[%clk 0:00:27.4]} 25. Nce5
{[%clk 0:01:15.8]} 25... Ne6 {[%clk 0:00:19.5]} 26. Bxd5 {[%clk 0:01:12.7]}
26... Qxd5 {[%clk 0:00:19.6]} 27. Qc4 {[%clk 0:01:13.2]} 27... Qxc4 {[%clk
0:00:12.2]} 28. Nxc4 {[%clk 0:01:14.1]} 28... b5 {[%clk 0:00:10.6]} 29. Nce5
{[%clk 0:01:12.7]} 29... Kg8 {[%clk 0:00:07.1]} 30. Nd7 {[%clk 0:01:11.6]} 30...
Rfd8 {[%clk 0:00:04.6]} 31. Nxf6+ {[%clk 0:01:12]} 31... gxf6 {[%clk 0:00:05.2]}
32. d5 {[%clk 0:01:12.1]} 32... Nc5 {[%clk 0:00:04.1]} 33. Nh4 {[%clk 0:01:10]}
33... Ra7 {[%clk 0:00:01.3]} 34. Nf5 {[%clk 0:01:10]} 34... Rad7 {[%clk
0:00:01.9]} 35. Re3 {[%clk 0:00:54.7]} 1-0

[Event "*** Titled Tuesday Blitz"]
[Site "Chess.com"]
[Date "2020.03.03"]
[Round "1"]
[White "valeriocarnicelli"]
[Black "OparinGrigoriy"]
[Result "0-1"]
[WhiteElo "2516"]
[BlackElo "3023"]
[TimeControl "180+1"]
[EndTime "13:06:45 PST"]
[Termination "OparinGrigoriy won on time"]

1. e4 {[%clk 0:02:55]} 1... e5 {[%clk 0:02:58.7]} 2. Nf3 {[%clk 0:02:54.9]} 2...
Nc6 {[%clk 0:02:59.1]} 3. Bc4 {[%clk 0:02:54.2]} 3... Nf6 {[%clk 0:02:58.8]} 4.
Ng5 {[%clk 0:02:50.1]} 4... d5 {[%clk 0:02:56.7]} 5. exd5 {[%clk 0:02:50.5]}
5... Na5 {[%clk 0:02:57.3]} 6. d3 {[%clk 0:02:50.9]} 6... Nxc4 {[%clk
0:02:40.4]} 7. dxc4 {[%clk 0:02:50.9]} 7... Bd6 {[%clk 0:02:33.9]} 8. Nc3 {[%clk
0:02:45.2]} 8... O-O {[%clk 0:02:33.2]} 9. O-O {[%clk 0:02:43]} 9... Bf5 {[%clk
0:02:32.3]} 10. Re1 {[%clk 0:02:40.9]} 10... Bg6 {[%clk 0:02:25.5]} 11. a3
{[%clk 0:02:27.3]} 11... Qd7 {[%clk 0:02:12.6]} 12. b4 {[%clk 0:02:17.2]} 12...
b6 {[%clk 0:02:12.1]} 13. Nge4 {[%clk 0:02:13.9]} 13... Nxe4 {[%clk 0:02:10.5]}
14. Nxe4 {[%clk 0:02:14.8]} 14... f5 {[%clk 0:02:10.5]} 15. Ng5 {[%clk
0:02:05.5]} 15... a5 {[%clk 0:02:01.9]} 16. c5 {[%clk 0:01:56.3]} 16... bxc5
{[%clk 0:01:47.4]} 17. bxc5 {[%clk 0:01:57.2]} 17... Bxc5 {[%clk 0:01:48.2]} 18.
Ne6 {[%clk 0:01:54.4]} 18... Bd6 {[%clk 0:01:48]} 19. Nxf8 {[%clk 0:01:53]}
19... Rxf8 {[%clk 0:01:48.9]} 20. Bb2 {[%clk 0:01:48.7]} 20... e4 {[%clk
0:01:46]} 21. Qd4 {[%clk 0:01:45]} 21... Re8 {[%clk 0:01:45.5]} 22. c4 {[%clk
0:01:38]} 22... f4 {[%clk 0:01:45.2]} 23. Rad1 {[%clk 0:01:11.6]} 23... f3
{[%clk 0:01:40]} 24. c5 {[%clk 0:00:17]} 24... Be5 {[%clk 0:01:38]} 25. Qc4
{[%clk 0:00:17.3]} 25... Qg4 {[%clk 0:01:37.2]} 26. d6+ {[%clk 0:00:15.4]} 26...
Bf7 {[%clk 0:01:34]} 27. Qf1 {[%clk 0:00:13.6]} 27... Bxb2 {[%clk 0:01:28.6]}
28. dxc7 {[%clk 0:00:11.6]} 28... Bf6 {[%clk 0:01:20.2]} 29. h3 {[%clk 0:00:09]}
29... Qc8 {[%clk 0:01:13.6]} 30. gxf3 {[%clk 0:00:06.7]} 30... Qxc7 {[%clk
0:01:11.5]} 31. fxe4 {[%clk 0:00:06.1]} 31... Qxc5 {[%clk 0:01:10.8]} 32. Qg2
{[%clk 0:00:04.7]} 32... h6 {[%clk 0:01:08]} 33. Kh1 {[%clk 0:00:04.8]} 33...
Qh5 {[%clk 0:01:07.2]} 34. f3 {[%clk 0:00:04.3]} 34... Be6 {[%clk 0:01:06.8]}
35. Kh2 {[%clk 0:00:03]} 35... Be5+ {[%clk 0:01:07.3]} 36. Kg1 {[%clk
0:00:03.4]} 36... Bxh3 {[%clk 0:01:07.9]} 37. Qa2+ {[%clk 0:00:02.7]} 37... Kh8
{[%clk 0:01:06.7]} 38. Qe2 {[%clk 0:00:02.4]} 38... Re6 {[%clk 0:01:04.5]} 39.
Kf2 {[%clk 0:00:01.4]} 39... Bf4 {[%clk 0:00:55.9]} 40. Rg1 {[%clk 0:00:01.5]}
40... Qh4+ {[%clk 0:00:55]} 0-1

[Event "*** Titled Tuesday Blitz"]
[Site "Chess.com"]
[Date "2020.03.03"]
[Round "1"]
[White "Sebastian"]
[Black "Mikhail_Golubev"]
[Result "1-0"]
[WhiteElo "3005"]
[BlackElo "2515"]
[TimeControl "180+1"]
[EndTime "13:06:45 PST"]
[Termination "Sebastian won by resignation"]

1. d4 {[%clk 0:02:59.7]} 1... Nf6 {[%clk 0:02:59.2]} 2. Nf3 {[%clk 0:03:00]}
2... d6 {[%clk 0:02:58.3]} 3. c4 {[%clk 0:02:58.2]} 3... g6 {[%clk 0:02:58.3]}
4. Nc3 {[%clk 0:02:57.6]} 4... Bg7 {[%clk 0:02:58.8]} 5. e4 {[%clk 0:02:58.1]}
5... O-O {[%clk 0:02:59.2]} 6. Be2 {[%clk 0:02:56.6]} 6... e5 {[%clk 0:02:58.4]}
7. d5 {[%clk 0:02:55.9]} 7... Qe8 {[%clk 0:02:57.4]} 8. Bg5 {[%clk 0:02:45.8]}
8... Nh5 {[%clk 0:02:53.4]} 9. g3 {[%clk 0:02:43.1]} 9... f5 {[%clk 0:02:48.5]}
10. exf5 {[%clk 0:02:38.9]} 10... gxf5 {[%clk 0:02:47.7]} 11. Nh4 {[%clk
0:02:38.1]} 11... Nf6 {[%clk 0:02:45.8]} 12. Qc2 {[%clk 0:02:38]} 12... Na6
{[%clk 0:02:40.4]} 13. O-O {[%clk 0:02:26.5]} 13... Nc5 {[%clk 0:02:31.9]} 14.
Be3 {[%clk 0:02:19.4]} 14... Nce4 {[%clk 0:02:12.7]} 15. Nxe4 {[%clk 0:02:18.6]}
15... Nxe4 {[%clk 0:02:12.8]} 16. Bd3 {[%clk 0:02:19.1]} 16... Qh5 {[%clk
0:01:57.3]} 17. Nxf5 {[%clk 0:02:13.6]} 17... Bxf5 {[%clk 0:01:44]} 18. Bxe4
{[%clk 0:02:13.8]} 18... Bxe4 {[%clk 0:01:44]} 19. Qxe4 {[%clk 0:02:13.4]} 19...
Rf3 {[%clk 0:01:44.3]} 20. c5 {[%clk 0:02:07]} 20... Raf8 {[%clk 0:01:41.1]} 21.
cxd6 {[%clk 0:02:06.7]} 21... cxd6 {[%clk 0:01:41.1]} 22. Rac1 {[%clk
0:02:03.3]} 22... Qh3 {[%clk 0:01:31.7]} 23. Rc7 {[%clk 0:01:47.7]} 23... R8f5
{[%clk 0:01:26.4]} 24. Rfc1 {[%clk 0:01:24.8]} 24... Bh6 {[%clk 0:01:01]} 25.
Rc8+ {[%clk 0:00:43.3]} 25... Kf7 {[%clk 0:00:52.1]} 26. R1c7+ {[%clk
0:00:39.1]} 26... Kf6 {[%clk 0:00:52.3]} 27. Qb4 {[%clk 0:00:29.6]} 27... Rxg3+
{[%clk 0:00:10.4]} 28. hxg3 {[%clk 0:00:27.5]} 28... Bxe3 {[%clk 0:00:09.3]} 29.
Qxd6+ {[%clk 0:00:24.5]} 29... Kg5 {[%clk 0:00:08.8]} 30. Rg8+ {[%clk
0:00:23.7]} 1-0

[Event "*** Titled Tuesday Blitz"]
[Site "Chess.com"]
[Date "2020.03.03"]
[Round "1"]
[White "WanderingPuppet"]
[Black "tigra"]
[Result "0-1"]
[WhiteElo "2406"]
[BlackElo "2764"]
[TimeControl "180+1"]
[EndTime "13:06:52 PST"]
[Termination "tigra won on time"]

1. e4 {[%clk 0:02:59.9]} 1... c5 {[%clk 0:02:57.4]} 2. Nf3 {[%clk 0:02:57.9]}
2... d6 {[%clk 0:02:57.1]} 3. d4 {[%clk 0:02:56]} 3... cxd4 {[%clk 0:02:58]} 4.
Nxd4 {[%clk 0:02:56.3]} 4... Nf6 {[%clk 0:02:58.7]} 5. Nc3 {[%clk 0:02:55.4]}
5... a6 {[%clk 0:02:59.1]} 6. Be3 {[%clk 0:02:53.2]} 6... e6 {[%clk 0:02:58.3]}
7. a3 {[%clk 0:02:52.1]} 7... Be7 {[%clk 0:02:57.4]} 8. g4 {[%clk 0:02:49.2]}
8... O-O {[%clk 0:02:57.8]} 9. g5 {[%clk 0:02:45.1]} 9... Nfd7 {[%clk
0:02:57.8]} 10. h4 {[%clk 0:02:40.4]} 10... b5 {[%clk 0:02:57]} 11. Rg1 {[%clk
0:02:05]} 11... Bb7 {[%clk 0:02:53]} 12. h5 {[%clk 0:01:59]} 12... Nc6 {[%clk
0:02:39.8]} 13. Nxc6 {[%clk 0:01:39.8]} 13... Bxc6 {[%clk 0:02:40.7]} 14. g6
{[%clk 0:01:18.2]} 14... f5 {[%clk 0:02:09.6]} 15. exf5 {[%clk 0:01:03.2]} 15...
exf5 {[%clk 0:02:07.4]} 16. gxh7+ {[%clk 0:00:53.8]} 16... Kh8 {[%clk
0:02:03.6]} 17. Nd5 {[%clk 0:00:34]} 17... Bxd5 {[%clk 0:01:50]} 18. Qxd5 {[%clk
0:00:34.9]} 18... Bf6 {[%clk 0:01:02.7]} 19. Qxd6 {[%clk 0:00:21]} 19... Bxb2
{[%clk 0:00:57.5]} 20. Rd1 {[%clk 0:00:20.1]} 20... Ne5 {[%clk 0:00:53.8]} 21.
Be2 {[%clk 0:00:13.5]} 21... Qh4 {[%clk 0:00:44.9]} 22. Bd4 {[%clk 0:00:10.6]}
22... Rae8 {[%clk 0:00:40]} 23. Kf1 {[%clk 0:00:06.6]} 23... Bxd4 {[%clk
0:00:28.9]} 24. Qxd4 {[%clk 0:00:04.7]} 24... Qh3+ {[%clk 0:00:28.9]} 25. Rg2
{[%clk 0:00:04.6]} 25... f4 {[%clk 0:00:28]} 26. Bg4 {[%clk 0:00:02.1]} 26...
Nxg4 {[%clk 0:00:24]} 0-1

[Event "*** Titled Tuesday Blitz"]
[Site "Chess.com"]
[Date "2020.03.03"]
[Round "1"]
[White "SahajGrover"]
[Black "ZEN-22"]
[Result "1-0"]
[WhiteElo "2725"]
[BlackElo "2372"]
[TimeControl "180+1"]
[EndTime "13:06:54 PST"]
[Termination "SahajGrover won by resignation"]

1. e4 {[%clk 0:03:00.9]} 1... e6 {[%clk 0:02:59.4]} 2. d4 {[%clk 0:03:00.8]}
2... c5 {[%clk 0:02:59]} 3. d5 {[%clk 0:02:59.9]} 3... a6 {[%clk 0:02:56.3]} 4.
a4 {[%clk 0:02:53]} 4... Ne7 {[%clk 0:02:50.5]} 5. Nc3 {[%clk 0:02:51.1]} 5...
d6 {[%clk 0:02:50.3]} 6. Bc4 {[%clk 0:02:40.5]} 6... exd5 {[%clk 0:02:41.3]} 7.
Nxd5 {[%clk 0:02:32.4]} 7... Nxd5 {[%clk 0:02:37.8]} 8. Qxd5 {[%clk 0:02:25.9]}
8... Qc7 {[%clk 0:02:34.1]} 9. Nf3 {[%clk 0:02:21.2]} 9... Nc6 {[%clk
0:02:31.1]} 10. Qd2 {[%clk 0:01:55.6]} 10... Be7 {[%clk 0:02:29.2]} 11. O-O
{[%clk 0:01:54.7]} 11... Be6 {[%clk 0:02:28.9]} 12. Qe2 {[%clk 0:01:48.6]} 12...
Bg4 {[%clk 0:02:24.3]} 13. Bf4 {[%clk 0:01:44.8]} 13... Nd4 {[%clk 0:02:23.9]}
14. Qd3 {[%clk 0:01:42]} 14... Nxf3+ {[%clk 0:02:18.2]} 15. gxf3 {[%clk
0:01:42.9]} 15... Bh3 {[%clk 0:02:18.7]} 16. Rfd1 {[%clk 0:01:43.3]} 16... Rd8
{[%clk 0:02:19.1]} 17. Kh1 {[%clk 0:01:39.3]} 17... O-O {[%clk 0:02:17.5]} 18.
Rg1 {[%clk 0:01:39.1]} 18... Bf6 {[%clk 0:02:16.2]} 19. Rg3 {[%clk 0:01:37.6]}
19... Be6 {[%clk 0:02:15.1]} 20. Rag1 {[%clk 0:01:35]} 20... g6 {[%clk
0:02:10.5]} 21. Bd5 {[%clk 0:01:01.2]} 21... Be5 {[%clk 0:02:09.2]} 22. Bxe5
{[%clk 0:00:53.8]} 22... dxe5 {[%clk 0:02:03.6]} 23. c4 {[%clk 0:00:53.5]} 23...
Kg7 {[%clk 0:02:02.4]} 24. Qe3 {[%clk 0:00:50.5]} 24... f6 {[%clk 0:02:01.1]}
25. h4 {[%clk 0:00:48.6]} 25... Kh8 {[%clk 0:01:49.6]} 26. Qh6 {[%clk
0:00:44.5]} 26... Bxd5 {[%clk 0:01:45.8]} 27. Rxg6 {[%clk 0:00:37.9]} 27... Bg8
{[%clk 0:01:29.9]} 28. Rxg8+ {[%clk 0:00:23.4]} 28... Rxg8 {[%clk 0:01:26.7]}
29. Qxf6+ {[%clk 0:00:23.2]} 29... Rg7 {[%clk 0:01:18.8]} 30. Rxg7 {[%clk
0:00:23.7]} 30... Qxg7 {[%clk 0:01:19.3]} 31. Qxd8+ {[%clk 0:00:23.9]} 31... Qg8
{[%clk 0:01:20.2]} 32. Qf6+ {[%clk 0:00:23.9]} 32... Qg7 {[%clk 0:01:20.2]} 33.
Qd8+ {[%clk 0:00:24.6]} 33... Qg8 {[%clk 0:01:20.2]} 34. Qxg8+ {[%clk
0:00:25.3]} 34... Kxg8 {[%clk 0:01:19.7]} 35. Kg2 {[%clk 0:00:26.2]} 35... Kg7
{[%clk 0:01:18.4]} 36. Kg3 {[%clk 0:00:26.1]} 36... Kg6 {[%clk 0:01:15.6]} 37.
f4 {[%clk 0:00:26.6]} 37... Kf6 {[%clk 0:01:11.5]} 38. Kf3 {[%clk 0:00:27.1]}
38... h5 {[%clk 0:01:10.7]} 39. fxe5+ {[%clk 0:00:27.7]} 39... Kxe5 {[%clk
0:01:10.3]} 40. Ke3 {[%clk 0:00:28.6]} 40... Ke6 {[%clk 0:01:08.7]} 41. f4
{[%clk 0:00:29.5]} 41... Kf6 {[%clk 0:01:07.4]} 42. e5+ {[%clk 0:00:30.1]} 42...
Kf5 {[%clk 0:01:07.5]} 43. Kf3 {[%clk 0:00:30.7]} 43... b6 {[%clk 0:01:04.1]}
44. b3 {[%clk 0:00:30.4]} 44... a5 {[%clk 0:01:03.4]} 45. Ke3 {[%clk 0:00:30.3]}
45... Kg4 {[%clk 0:01:03]} 46. e6 {[%clk 0:00:30.9]} 1-0

[Event "*** Titled Tuesday Blitz"]
[Site "Chess.com"]
[Date "2020.03.03"]
[Round "1"]
[White "ElGasanov"]
[Black "VeraNebolsina"]
[Result "1-0"]
[WhiteElo "2713"]
[BlackElo "2368"]
[TimeControl "180+1"]
[EndTime "13:06:57 PST"]
[Termination "ElGasanov won on time"]

1. c4 {[%clk 0:02:59.6]} 1... Nf6 {[%clk 0:02:59.1]} 2. Nc3 {[%clk 0:02:58.5]}
2... g6 {[%clk 0:02:58.8]} 3. e4 {[%clk 0:02:58.8]} 3... Bg7 {[%clk 0:02:58.3]}
4. e5 {[%clk 0:02:56.5]} 4... Ng8 {[%clk 0:02:50.7]} 5. d4 {[%clk 0:02:56.8]}
5... d6 {[%clk 0:02:50.1]} 6. exd6 {[%clk 0:02:56.5]} 6... cxd6 {[%clk
0:02:49.7]} 7. Be3 {[%clk 0:02:50.9]} 7... Nh6 {[%clk 0:02:44.6]} 8. Nf3 {[%clk
0:02:38.5]} 8... Nf5 {[%clk 0:02:30.7]} 9. Bf4 {[%clk 0:02:28.1]} 9... Nc6
{[%clk 0:02:14.7]} 10. d5 {[%clk 0:02:26.1]} 10... Ncd4 {[%clk 0:02:08.7]} 11.
Nxd4 {[%clk 0:02:20.8]} 11... Nxd4 {[%clk 0:02:08.2]} 12. Bd3 {[%clk 0:02:17.1]}
12... Bf5 {[%clk 0:01:59.4]} 13. O-O {[%clk 0:02:14.4]} 13... Qd7 {[%clk
0:01:31.6]} 14. Re1 {[%clk 0:02:09.8]} 14... O-O {[%clk 0:01:22.8]} 15. Rc1
{[%clk 0:02:05.5]} 15... Rac8 {[%clk 0:01:06.1]} 16. Be3 {[%clk 0:01:52.5]}
16... Bxd3 {[%clk 0:00:49.6]} 17. Qxd3 {[%clk 0:01:51.1]} 17... Nf5 {[%clk
0:00:50.5]} 18. Bxa7 {[%clk 0:01:42.2]} 18... Bxc3 {[%clk 0:00:22.7]} 19. Rxc3
{[%clk 0:01:37.7]} 19... b5 {[%clk 0:00:22.6]} 20. Be3 {[%clk 0:01:34.2]} 20...
Nxe3 {[%clk 0:00:18.1]} 21. Qxe3 {[%clk 0:01:26.6]} 21... bxc4 {[%clk
0:00:15.7]} 22. Qh6 {[%clk 0:01:20.5]} 22... e5 {[%clk 0:00:10.1]} 23. dxe6
{[%clk 0:01:17.9]} 23... fxe6 {[%clk 0:00:10.1]} 24. Qh3 {[%clk 0:01:15.8]}
24... Rf6 {[%clk 0:00:06.6]} 25. Rce3 {[%clk 0:01:15.2]} 25... Qf7 {[%clk
0:00:05.6]} 26. Rxe6 {[%clk 0:01:11.4]} 26... Rxf2 {[%clk 0:00:04.8]} 27. Rxg6+
{[%clk 0:00:54.6]} 27... hxg6 {[%clk 0:00:05]} 28. Qxc8+ {[%clk 0:00:54.6]}
28... Kg7 {[%clk 0:00:05.5]} 29. Qg4 {[%clk 0:00:46.5]} 29... Rf4 {[%clk
0:00:05.6]} 30. Qe2 {[%clk 0:00:45.9]} 30... Qa7+ {[%clk 0:00:05]} 31. Kh1
{[%clk 0:00:44.9]} 31... Qd4 {[%clk 0:00:05]} 32. h3 {[%clk 0:00:40.7]} 32...
Rf7 {[%clk 0:00:05]} 33. Rd1 {[%clk 0:00:40]} 33... Qe5 {[%clk 0:00:04.4]} 34.
Qxc4 {[%clk 0:00:39.1]} 34... Qh5 {[%clk 0:00:02.7]} 35. Qd4+ {[%clk 0:00:38.4]}
35... Kh7 {[%clk 0:00:02.3]} 36. Qxd6 {[%clk 0:00:38.3]} 36... Re7 {[%clk
0:00:01.8]} 37. Qxe7+ {[%clk 0:00:37.8]} 1-0